fUST/lending_fUST_20250219
["ID","MTS","AMOUNT","RATE_DAILY","PERIOD"]
[353568776,1739919041637,-500.0,0.00014684,2]
[353568777,1739919041647,-500.0,0.00014684,2]
[353568778,1739919041658,-510.0,0.00014684,2]
[353568779,1739919041668,-500.0,0.00014684,2]
[353568780,1739919041678,-553.11,0.00014684,2]
[353568781,1739919041689,-518.78,0.00014684,2]
[353568782,1739919041699,-2372.02,0.00014684,2]
[353568783,1739919041708,-513.74,0.00014684,2]
[353568784,1739919041718,-536.36,0.00014684,2]
[353568785,1739919041729,-511.49,0.00014684,2]
[353568786,1739919041739,-1199.55,0.00014684,2]
[353568787,1739919041748,-500.0,0.00014684,2]
[353568788,1739919041758,-8144.62,0.00014684,2]
[353568789,1739919041767,-500.0,0.00014684,2]
[353568790,1739919041777,-500.0,0.00014684,2]
[353568791,1739919041787,-740.25,0.00014684,2]
[353568792,1739919041796,-500.0,0.00014684,2]
[353568793,1739919041805,-2274.41,0.00014684,2]
[353568794,1739919041815,-903.47,0.00014684,2]
[353568795,1739919041824,-151.0,0.000147,2]
[353568796,1739919041834,-151.0,0.000147,2]
[353568797,1739919041843,-500.0,0.00014767,2]
[353568798,1739919041854,-500.0,0.00014767,2]
[353568799,1739919041864,-482.46,0.00014767,2]
[353568800,1739919041873,-500.0,0.00014767,2]
[353568801,1739919041883,-500.0,0.00014767,2]
[353568802,1739919041893,-553.11,0.00014767,2]
[353568803,1739919041902,-518.78,0.00014767,2]
[353568804,1739919041911,-2372.02,0.00014767,2]
[353568805,1739919041920,-513.74,0.00014767,2]
[353568806,1739919041930,-536.36,0.00014767,2]
[353568807,1739919041939,-511.49,0.00014767,2]
[353568808,1739919041948,-1199.55,0.00014767,2]
[353568809,1739919041958,-500.0,0.00014767,2]
[353568810,1739919041968,-8144.62,0.00014767,2]
[353568811,1739919041977,-500.0,0.00014767,2]
[353568812,1739919041987,-500.0,0.00014767,2]
[353568813,1739919041996,-740.25,0.00014767,2]
[353568814,1739919042005,-500.0,0.00014767,2]
[353568815,1739919042015,-2274.41,0.00014767,2]
[353568816,1739919042024,-903.47,0.00014767,2]
[353568817,1739919042033,-182.71,0.00014786,2]
[353568818,1739919042042,-151.0,0.000148,2]
[353568819,1739919042051,-470.38,0.00014849,2]
[353568820,1739919042060,-500.0,0.00014849,2]
[353568821,1739919042069,-500.0,0.00014849,2]
[353568822,1739919042079,-500.0,0.00014849,2]
[353568823,1739919042087,-553.11,0.00014849,2]
[353568824,1739919042097,-518.78,0.00014849,2]
[353568825,1739919042105,-2372.02,0.00014849,2]
[353568826,1739919042114,-513.74,0.00014849,2]
[353568827,1739919042123,-536.36,0.00014849,2]
[353568828,1739919042134,-511.49,0.00014849,2]
[353568829,1739919042143,-1199.55,0.00014849,2]
[353568830,1739919042152,-500.0,0.00014849,2]
[353568831,1739919042160,-8144.62,0.00014849,2]
[353568832,1739919042170,-500.0,0.00014849,2]
[353568833,1739919042179,-500.0,0.00014849,2]
[353568834,1739919042188,-740.25,0.00014849,2]
[353568835,1739919042197,-500.0,0.00014849,2]
[353568836,1739919042206,-2274.41,0.00014849,2]
[353568837,1739919042215,-903.47,0.00014849,2]
[353568838,1739919042224,-500.0,0.00014873,2]
[353568839,1739919042234,-500.0,0.00014873,2]
[353568840,1739919042243,-500.0,0.00014873,2]
[353568841,1739919042252,-500.0,0.00014873,2]
[353568842,1739919042262,-151.0,0.000149,2]
[353568843,1739919042271,-266621.712684,0.000149,2]
[353568844,1739919042280,-445.47,0.00014931,2]
[353568845,1739919042289,-500.0,0.00014931,2]
[353568846,1739919042299,-500.0,0.00014931,2]
[353568847,1739919042307,-553.11,0.00014931,2]
[353568848,1739919042316,-518.78,0.00014931,2]
[353568849,1739919042325,-2372.02,0.00014931,2]
[353568850,1739919042335,-513.74,0.00014931,2]
[353568851,1739919042343,-536.36,0.00014931,2]
[353568852,1739919042352,-511.49,0.00014931,2]
[353568853,1739919042362,-1199.55,0.00014931,2]
[353568854,1739919042371,-500.0,0.00014931,2]
[353568855,1739919042380,-8144.62,0.00014931,2]
[353568856,1739919042389,-394.09599102,0.00014931,2]
[353568857,1739919042398,-500.0,0.00014931,2]
[353568858,1739919042407,-740.25,0.00014931,2]
[353568859,1739919042416,-500.0,0.00014931,2]
[353568860,1739919042425,-2274.41,0.00014931,2]
[353568861,1739919042434,-903.47,0.00014931,2]
[353568862,1739919042443,-151.0,0.00015,2]
[353568863,1739919042452,-420.0,0.0001501,2]
[353568864,1739919042461,-500.0,0.00015013,2]
[353568865,1739919042470,-500.0,0.00015013,2]
[353568866,1739919042479,-553.11,0.00015013,2]
[353568867,1739919042488,-518.78,0.00015013,2]
[353568868,1739919042497,-2372.02,0.00015013,2]
[353568869,1739919042506,-513.74,0.00015013,2]
[353568870,1739919042515,-536.36,0.00015013,2]
[353568871,1739919042524,-511.49,0.00015013,2]
[353568872,1739919042533,-1199.55,0.00015013,2]
[353568873,1739919042543,-500.0,0.00015013,2]
[353568874,1739919042551,-8144.62,0.00015013,2]
[353568875,1739919042560,-500.0,0.00015013,2]
[353568876,1739919042569,-740.25,0.00015013,2]
[353568877,1739919042578,-500.0,0.00015013,2]
[353568878,1739919042587,-2274.41,0.00015013,2]
[353568879,1739919042595,-903.47,0.00015013,2]
[353568880,1739919042606,-500.0,0.00015095,2]
[353568881,1739919042615,-500.0,0.00015095,2]
[353568882,1739919042624,-553.11,0.00015095,2]
[353568883,1739919042633,-518.78,0.00015095,2]
[353568884,1739919042644,-2372.02,0.00015095,2]
[353568885,1739919042655,-513.74,0.00015095,2]
[353568886,1739919042664,-536.36,0.00015095,2]
[353568887,1739919042674,-511.49,0.00015095,2]
[353568888,1739919042683,-1199.55,0.00015095,2]
[353568889,1739919042694,-500.0,0.00015095,2]
[353568890,1739919042703,-8144.62,0.00015095,2]
[353568891,1739919042712,-500.0,0.00015095,2]
[353568892,1739919042724,-740.25,0.00015095,2]
[353568893,1739919042734,-500.0,0.00015095,2]
[353568894,1739919042745,-2274.41,0.00015095,2]
[353568895,1739919042754,-903.47,0.00015095,2]
[353568896,1739919042765,-500.0,0.00015178,2]
[353568897,1739919042774,-500.0,0.00015178,2]
[353568898,1739919042783,-553.11,0.00015178,2]
[353568899,1739919042793,-518.78,0.00015178,2]
[353568901,1739919042802,-2372.02,0.00015178,2]
[353568903,1739919042813,-513.74,0.00015178,2]
[353568905,1739919042822,-536.36,0.00015178,2]
[353568906,1739919042832,-511.49,0.00015178,2]
[353568907,1739919042841,-1199.55,0.00015178,2]
[353568908,1739919042851,-500.0,0.00015178,2]
[353568909,1739919042860,-8144.62,0.00015178,2]
[353568910,1739919042870,-500.0,0.00015178,2]
[353568911,1739919042880,-740.25,0.00015178,2]
[353568912,1739919042890,-500.0,0.00015178,2]
[353568913,1739919042899,-2274.41,0.00015178,2]
[353568914,1739919042908,-903.47,0.00015178,2]
[353568915,1739919042918,-151.0,0.000152,2]
[353568916,1739919042927,-151.0,0.000152,2]
[353568918,1739919042937,-1000.0,0.00015222,2]
[353568927,1739919043032,-450.40290817,0.0001526,2]
[353568928,1739919043042,-500.0,0.0001526,2]
[353568930,1739919043051,-553.11,0.0001526,2]
[353568931,1739919043061,-518.78,0.0001526,2]
[353568933,1739919043070,-2372.02,0.0001526,2]
[353568935,1739919043080,-513.74,0.0001526,2]
[353568936,1739919043090,-536.36,0.0001526,2]
[353568938,1739919043099,-511.49,0.0001526,2]
[353568940,1739919043109,-1199.55,0.0001526,2]
[353568942,1739919043119,-500.0,0.0001526,2]
[353568944,1739919043128,-8144.62,0.0001526,2]
[353568947,1739919043139,-500.0,0.0001526,2]
[353568950,1739919043148,-740.25,0.0001526,2]
[353568952,1739919043158,-500.0,0.0001526,2]
[353568955,1739919043172,-2274.41,0.0001526,2]
[353568958,1739919043183,-903.47,0.0001526,2]
[353568961,1739919043195,-151.0,0.00015331,2]
[353568963,1739919043205,-200.981,0.00015334,2]
[353568965,1739919043215,-500.0,0.00015342,2]
[353568968,1739919043230,-553.11,0.00015342,2]
[353568971,1739919043241,-518.78,0.00015342,2]
[353568972,1739919043250,-2372.02,0.00015342,2]
[353568975,1739919043259,-513.74,0.00015342,2]
[353568977,1739919043268,-536.36,0.00015342,2]
[353568979,1739919043278,-511.49,0.00015342,2]
[353568982,1739919043287,-1199.55,0.00015342,2]
[353568984,1739919043297,-500.0,0.00015342,2]
[353568985,1739919043306,-8144.62,0.00015342,2]
[353568987,1739919043316,-500.0,0.00015342,2]
[353568988,1739919043325,-740.25,0.00015342,2]
[353568989,1739919043335,-500.0,0.00015342,2]
[353568991,1739919043344,-2274.41,0.00015342,2]
[353568992,1739919043353,-903.47,0.00015342,2]
[353568993,1739919043362,-151.0,0.000154,2]
[353568994,1739919043371,-1000.0,0.00015421,2]
[353568995,1739919043380,-500.0,0.00015424,2]
[353568996,1739919043390,-553.11,0.00015424,2]
[353568997,1739919043399,-518.78,0.00015424,2]
[353568998,1739919043408,-2372.02,0.00015424,2]
[353568999,1739919043418,-513.74,0.00015424,2]
[353569000,1739919043429,-536.36,0.00015424,2]
[353569001,1739919043438,-511.49,0.00015424,2]
[353569002,1739919043448,-1199.55,0.00015424,2]
[353569003,1739919043459,-626.49080018,0.00015424,2]
[353569004,1739919043469,-8144.62,0.00015424,2]
[353569005,1739919043480,-500.0,0.00015424,2]
[353569006,1739919043490,-740.25,0.00015424,2]
[353569007,1739919043499,-154.0570493,0.00015424,2]
[353569009,1739919043510,-2274.41,0.00015424,2]
[353569010,1739919043520,-903.47,0.00015424,2]
[353569011,1739919043530,-2247.62950026,0.00015489,2]
[353569012,1739919043540,-500.0,0.00015506,2]
[353569013,1739919043549,-553.11,0.00015506,2]
[353569014,1739919043558,-518.78,0.00015506,2]
[353569015,1739919043567,-2372.02,0.00015506,2]
[353569016,1739919043577,-513.74,0.00015506,2]
[353569017,1739919043586,-536.36,0.00015506,2]
[353569018,1739919043597,-511.49,0.00015506,2]
[353569019,1739919043607,-1199.55,0.00015506,2]
[353569020,1739919043617,-8144.62,0.00015506,2]
[353569021,1739919043627,-585.85810767,0.00015506,2]
[353569022,1739919043636,-740.25,0.00015506,2]
[353569023,1739919043652,-2274.41,0.00015506,2]
[353569024,1739919043661,-903.47,0.00015506,2]
[353569025,1739919043670,-500.0,0.00015534,2]
[353569026,1739919043679,-378.88198647,0.00015589,2]
[353569027,1739919043690,-553.16989862,0.00015589,2]
[353569028,1739919043700,-518.87921763,0.00015589,2]
[353569029,1739919043710,-2372.0224631,0.00015589,2]
[353569030,1739919043719,-513.8003497,0.00015589,2]
[353569031,1739919043730,-536.51116204,0.00015589,2]
[353569032,1739919043739,-511.57695954,0.00015589,2]
[353569033,1739919043749,-1199.68130408,0.00015589,2]
[353569034,1739919043759,-8144.6465,0.00015589,2]
[353569035,1739919043768,-740.33,0.00015589,2]
[353569036,1739919043785,-2274.55223969,0.00015589,2]
[353569037,1739919043796,-903.47926382,0.00015589,2]
[353569038,1739919043806,-151.0,0.000157,2]
[353569039,1739919043817,-400.0,0.00015775,2]
[353569040,1739919043826,-150.0,0.00015874,2]
[353569041,1739919043835,-1971.0,0.00015874,2]
[353569042,1739919043844,-538.0,0.00015874,2]
[353569043,1739919043853,-2289.0,0.00015874,2]
[353569044,1739919043863,-396.0,0.00015874,2]
[353569045,1739919043872,-150.0,0.00015874,2]
[353569046,1739919043882,-295.974,0.00015874,2]
[353569047,1739919043892,-221.0791,0.00015882,2]
[353569048,1739919043901,-151.0,0.000159,2]
[353569049,1739919043911,-499.0,0.00016164,2]
[353569050,1739919043920,-500.0,0.00016173,2]
[353569051,1739919043930,-500.0,0.00016193,2]
[353569052,1739919043939,-300.0,0.000162,6]
[353569053,1739919043948,-500.0,0.00016293,2]
[353569054,1739919043957,-151.0,0.000163,2]
[353569055,1739919043967,-500.0,0.00016393,2]
[353569056,1739919043976,-1000.0,0.00016422,2]
[353569057,1739919043985,-302.0,0.0001643,2]
[353569058,1739919043995,-587.0,0.0001645,2]
[353569059,1739919044004,-500.0,0.00016493,2]
[353569060,1739919044014,-466.96442458,0.00016496,2]
[353569061,1739919044023,-26789.49,0.000165,2]
[353569062,1739919044032,-2488.67,0.000165,2]
[353569063,1739919044042,-500.0,0.00016593,2]
[353569064,1739919044051,-500.0,0.00016693,2]
[353569065,1739919044061,-2247.62950025,0.00016695,2]
[353569066,1739919044070,-151.0,0.000167,2]
[353569067,1739919044079,-1000.0,0.00016721,2]
[353569068,1739919044088,-500.0,0.00016793,2]
[353569069,1739919044098,-500.0,0.00016893,2]
[353569070,1739919044107,-500.0,0.00016904,2]
[353569071,1739919044116,-500.0,0.00016993,2]
[353569072,1739919044126,-355.1269712,0.00017041,2]
[353569073,1739919044135,-500.0,0.00017093,2]
[353569074,1739919044144,-151.0,0.000171,2]
[353569075,1739919044154,-493.836513,0.00017123,2]
[353569076,1739919044164,-2200.0,0.00017153,2]
[353569077,1739919044174,-154.7234452,0.00017178,2]
[353569078,1739919044185,-216.0000907,0.00017178,2]
[353569079,1739919044194,-500.0,0.00017193,2]
[353569080,1739919044203,-500.0,0.00017293,2]
[353569081,1739919044213,-500.0,0.00017393,2]
[353569082,1739919044223,-153.0,0.00017452,2]
[353569083,1739919044233,-500.0,0.00017493,2]
[353569084,1739919044242,-499.0,0.00017534,4]
[353569085,1739919044254,-500.0,0.00017565,5]
[353569086,1739919044264,-503.60565497,0.00017565,5]
[353569087,1739919044275,-2000.0,0.00017565,30]
[353569088,1739919044285,-2000.0,0.00017565,30]
[353569089,1739919044295,-843.599999,0.00017565,30]
[353569090,1739919044307,-2000.0,0.00017565,30]
[353569091,1739919044318,-2000.0,0.00017565,30]
[353569092,1739919044328,-843.599999,0.00017565,30]
[353569093,1739919044339,-500.0,0.00017593,2]
[353569094,1739919044349,-151.0,0.000176,2]
[353569095,1739919044360,-8435.33728319,0.00017613,2]
[353569096,1739919044370,-5000.0,0.00017613,2]
[353569097,1739919044380,-5000.0,0.00017613,2]
[353569098,1739919044389,-5000.0,0.00017613,2]
[353569099,1739919044399,-5000.0,0.00017613,2]
[353569100,1739919044409,-1354.3657539,0.00017639,2]
[353569101,1739919044419,-988.54,0.00017693,2]
[353569102,1739919044429,-300.0,0.000177,7]
[353569103,1739919044440,-501.47152672,0.00017722,2]
[353569104,1739919044450,-934.0,0.000178,2]
[353569105,1739919044461,-22618.90496927,0.0001782,2]
[353569106,1739919044472,-3000.0,0.000179,2]
[353569107,1739919044481,-153.6,0.000179,31]
[353569108,1739919044491,-153.6,0.000179,31]
[353569109,1739919044501,-153.6,0.000179,31]
[353569110,1739919044514,-153.6,0.000179,31]
[353569111,1739919044527,-153.6,0.000179,31]
[353569112,1739919044536,-153.6,0.000179,31]
[353569113,1739919044547,-153.6,0.000179,31]
[353569114,1739919044557,-2247.62950025,0.000179,2]
[353569115,1739919044567,-500.0,0.00017973,2]
[353569116,1739919044576,-500.0,0.00017973,2]
[353569117,1739919044584,-344.0,0.0001799,2]
[353569118,1739919044594,-160.0,0.00017999,2]
[353569119,1739919044603,-160.0,0.00017999,2]
[353569120,1739919044613,-161153.72585788,0.00018,5]
[353569121,1739919044622,-19945.24731329,0.00018,5]
[353569122,1739919044632,-3920932.0339589,0.00018,15]
[353569123,1739919045399,-3090.08620757,0.00018,15]
[353569124,1739919045415,-275393.60166508,0.00018,15]
[353569125,1739919045424,-1735138.90047797,0.00018,15]
[353569144,1739919047000,-295.85,0.00010959,2]
[353569145,1739919047010,-500.0,0.00013698,2]
[353569146,1739919047020,-500.0,0.0001378,2]
[353569147,1739919047030,-500.0,0.00013863,2]
[353569148,1739919047040,-474.72,0.00013945,2]
[353569149,1739919047050,-73.844117,0.00018,15]
[353569150,1739919082301,825.8964707,0.00019,120]
[353569151,1739919097325,864.22402,0.00019,120]
[353569164,1739919861775,400.0,9.041e-05,2]
[353569165,1739919942124,-159.78292769,0.00010741,2]
[353569166,1739920026100,-165.84518376,0.00010741,2]
[353569167,1739920026125,-550.29,0.00010959,2]
[353569168,1739920026146,-458.57,0.00010959,2]
[353569169,1739920026168,-382.15,0.00010959,2]
[353569170,1739920026188,-318.45,0.00010959,2]
[353569171,1739920026209,-300.0,0.0001248,2]
[353569172,1739920026231,-24900.0,0.00012481,2]
[353569173,1739920026252,-420.0,0.00013693,2]
[353569174,1739920026273,-354.25139608,0.00013698,2]
[353569175,1739920026293,-500.0,0.00013698,2]
[353569176,1739920026315,-359.65015428,0.00013698,2]
[353569177,1739920026337,-500.0,0.00013698,2]
[353569178,1739920026359,-500.0,0.00013698,2]
[353569179,1739920026382,-622.56,0.00013698,2]
[353569180,1739920026404,-1000.0,0.00013698,2]
[353569181,1739920026427,-481.5639727,0.00013698,2]
[353569182,1739920026449,-500.0,0.00013698,2]
[353569183,1739920026471,-594.07767682,0.00013698,2]
[353569184,1739920026495,-500.0,0.00013698,2]
[353569185,1739920026516,-500.0,0.00013698,2]
[353569186,1739920026537,-500.0,0.00013698,2]
[353569187,1739920026558,-500.0,0.00013698,2]
[353569188,1739920026579,-500.0,0.00013698,2]
[353569189,1739920026602,-567.39009561,0.00013698,2]
[353569190,1739920026624,-500.0,0.00013698,2]
[353569191,1739920026651,-500.0,0.00013698,2]
[353569192,1739920026672,-500.0,0.00013698,2]
[353569193,1739920026694,-500.0,0.00013698,2]
[353569194,1739920026716,-500.0,0.00013698,2]
[353569195,1739920026758,-500.0,0.00013698,2]
[353569196,1739920026780,-500.0,0.00013698,2]
[353569197,1739920026801,-500.0,0.00013698,2]
[353569198,1739920026822,-504.51737676,0.00013698,2]
[353569199,1739920026843,-500.0,0.00013698,2]
[353569200,1739920026863,-500.0,0.00013698,2]
[353569201,1739920026886,-500.0,0.00013698,2]
[353569202,1739920026908,-500.0,0.00013698,2]
[353569203,1739920026930,-500.0,0.00013698,2]
[353569204,1739920026952,-500.0,0.00013698,2]
[353569205,1739920026973,-500.98460817,0.00013698,2]
[353569206,1739920026995,-500.0,0.00013698,2]
[353569207,1739920027021,-500.0,0.00013698,2]
[353569208,1739920027043,-500.0,0.00013698,2]
[353569209,1739920027066,-296.301907,0.00013699,2]
[353569210,1739920027088,-163.7552842,0.00013699,2]
[353569211,1739920027110,-2757.9281421,0.00013699,2]
[353569212,1739920027132,-3000.0,0.00013763,2]
[353569213,1739920027154,-250.0,0.00013777,2]
[353569214,1739920027176,-500.0,0.0001378,2]
[353569215,1739920027198,-1000.0,0.0001378,2]
[353569216,1739920027221,-500.0,0.0001378,2]
[353569217,1739920027242,-500.0,0.0001378,2]
[353569218,1739920027263,-83.86698908,0.0001378,2]
[353569219,1739920039302,-265.38,0.00010849,2]
[353569220,1739920039323,-265.38,0.00010959,2]
[353569221,1739920039344,-141.00304775,0.00013698,2]
[353569222,1739920047093,-221.15,0.00010959,2]
[353569223,1739920047116,-358.99695225,0.00013698,2]
[353569224,1739920047136,-500.0,0.00013698,2]
[353569225,1739920047155,-629.94877595,0.00013698,2]
[353569226,1739920047177,-397.87883305,0.00013698,2]
[353569227,1739920052135,-102.12116695,0.00013698,2]
[353569228,1739920052159,-500.0,0.00013698,2]
[353569229,1739920052181,-416.13301092,0.0001378,2]
[353569230,1739920052203,-500.0,0.0001378,2]
[353569231,1739920052225,-500.0,0.0001378,2]
[353569232,1739920052248,-506.94,0.0001378,2]
[353569233,1739920052270,-500.0,0.0001378,2]
[353569234,1739920052292,-500.0,0.0001378,2]
[353569235,1739920052315,-500.0,0.0001378,2]
[353569236,1739920052336,-151.0,0.00013854,2]
[353569237,1739920052358,-500.0,0.0001386,2]
[353569238,1739920052379,-241.52442438,0.0001386,2]
[353569239,1739920052403,-500.47278567,0.0001386,2]
[353569240,1739920052426,-630.68184636,0.0001386,2]
[353569241,1739920052449,-500.0,0.0001386,2]
[353569242,1739920052471,-500.0,0.0001386,2]
[353569243,1739920052493,-500.0,0.0001386,2]
[353569244,1739920052515,-500.0,0.0001386,2]
[353569245,1739920052537,-241.56283001,0.0001386,2]
[353569246,1739920052558,-500.0,0.00013861,2]
[353569247,1739920052582,-500.0,0.00013861,2]
[353569248,1739920052603,-500.0,0.00013861,2]
[353569249,1739920052625,-500.0,0.00013861,2]
[353569250,1739920052646,-500.0,0.00013861,2]
[353569251,1739920052668,-500.0,0.00013861,2]
[353569252,1739920052688,-500.0,0.00013861,2]
[353569253,1739920052708,-171.95325535,0.00013861,2]
[353569254,1739920052730,-248.22556886,0.00013861,2]
[353569255,1739920052751,-515.97559689,0.00013861,2]
[353569256,1739920052776,-500.0,0.00013861,2]
[353569257,1739920052798,-500.0,0.00013862,2]
[353569258,1739920052820,-500.0,0.00013862,2]
[353569259,1739920052840,-500.0,0.00013862,2]
[353569260,1739920052861,-503.0,0.00013862,2]
[353569261,1739920052881,-500.0,0.00013862,2]
[353569262,1739920052902,-548.91148274,0.00013862,2]
[353569263,1739920052922,-506.18087667,0.00013862,2]
[353569264,1739920052944,-500.0,0.00013862,2]
[353569265,1739920052964,-500.0,0.00013862,2]
[353569266,1739920052984,-500.0,0.00013862,2]
[353569267,1739920053005,-500.0,0.00013862,2]
[353569268,1739920053029,-500.0,0.00013862,2]
[353569269,1739920053051,-500.0,0.00013862,2]
[353569270,1739920053073,-500.0,0.00013862,2]
[353569271,1739920053096,-500.0,0.00013862,2]
[353569272,1739920053118,-500.0,0.00013862,2]
[353569273,1739920053140,-500.0,0.00013862,2]
[353569274,1739920053163,-500.0,0.00013862,2]
[353569275,1739920053184,-500.0,0.00013862,2]
[353569276,1739920053206,-500.0,0.00013862,2]
[353569277,1739920053227,-500.0,0.00013862,2]
[353569278,1739920053248,-500.0,0.00013862,2]
[353569279,1739920053269,-500.0,0.00013862,2]
[353569280,1739920053289,-500.0,0.00013862,2]
[353569281,1739920053311,-318.25172612,0.00013862,2]
[353569282,1739920053332,-500.0,0.00013862,2]
[353569283,1739920053355,-500.0,0.00013862,2]
[353569284,1739920053377,-500.0,0.00013862,2]
[353569285,1739920053397,-500.0,0.00013862,2]
[353569286,1739920053419,-574.01,0.00013862,2]
[353569287,1739920053440,-500.0,0.00013862,2]
[353569288,1739920053460,-500.0,0.00013862,2]
[353569289,1739920053482,-500.0,0.00013862,2]
[353569290,1739920053503,-500.0,0.00013862,2]
[353569291,1739920053524,-500.0,0.00013862,2]
[353569292,1739920053546,-500.0,0.00013862,2]
[353569293,1739920053570,-500.0,0.00013862,2]
[353569294,1739920053591,-500.0,0.00013862,2]
[353569295,1739920053613,-500.0,0.00013862,2]
[353569296,1739920053635,-500.0,0.00013862,2]
[353569297,1739920053661,-503.26040828,0.00013862,2]
[353569298,1739920053685,-500.0,0.00013862,2]
[353569299,1739920053707,-500.36388675,0.00013862,2]
[353569300,1739920053730,-500.0,0.00013862,2]
[353569301,1739920053752,-500.0,0.00013862,2]
[353569302,1739920053775,-626.87917455,0.00013862,2]
[353569303,1739920053797,-500.0,0.00013862,2]
[353569304,1739920053819,-500.0,0.00013862,2]
[353569305,1739920053842,-500.0,0.00013862,2]
[353569306,1739920053864,-500.0,0.00013862,2]
[353569307,1739920053887,-500.0,0.00013862,2]
[353569308,1739920053912,-500.0,0.00013862,2]
[353569309,1739920053933,-500.0,0.00013862,2]
[353569310,1739920053956,-141.0479844,0.00013862,2]
[353569311,1739920152111,-184.29,0.00010959,2]
[353569312,1739920152131,-153.58,0.00010959,2]
[353569313,1739920152151,-318.93489091,0.00010959,2]
[353569314,1739920153141,-438.07919322,0.00010959,2]
[353569344,1739920232878,-286.73075199,0.00013498,2]
[353569346,1739920233385,-4274.87914977,0.00013498,2]
[353569347,1739920233395,-638.99617756,0.00013598,2]
[353569348,1739920233405,-500.0,0.00013698,2]
[353569349,1739920233415,-500.0,0.00013698,2]
[353569350,1739920233426,-145.25276006,0.00013698,2]
[353569351,1739920233442,-354.74723994,0.00013698,2]
[353569352,1739920233455,-45.25276006,0.00013698,2]
[353569411,1739920239421,-454.74723994,0.00013698,2]
[353569412,1739920239432,-205.35476692,0.00013698,2]
[353569413,1739920239442,-4114.24188642,0.00013721,2]
[353569414,1739920239453,-500.0,0.0001378,2]
[353569415,1739920239466,-500.0,0.0001378,2]
[353569416,1739920239476,-500.0,0.0001378,2]
[353569417,1739920239486,-1000.0,0.000138,2]
[353569418,1739920239497,-151.0,0.00013854,2]
[353569419,1739920239507,-500.0,0.00013861,2]
[353569420,1739920239518,-500.0,0.00013861,2]
[353569421,1739920239528,-500.0,0.00013861,2]
[353569422,1739920239539,-500.0,0.00013861,2]
[353569423,1739920239549,-467.15752055,0.00013861,2]
[353569424,1739920239560,-500.0,0.00013861,2]
[353569425,1739920239570,-249.06253667,0.00013861,2]
[353569426,1739920239581,-500.0,0.00013861,2]
[353569427,1739920239591,-500.0,0.00013861,2]
[353569428,1739920239602,-529.71,0.00013861,2]
[353569429,1739920239612,-500.0,0.00013861,2]
[353569430,1739920239623,-500.0,0.00013861,2]
[353569431,1739920239633,-500.0,0.00013861,2]
[353569432,1739920239643,-500.0,0.00013861,2]
[353569433,1739920239653,-500.0,0.00013861,2]
[353569434,1739920239664,-500.0,0.00013861,2]
[353569435,1739920239675,-500.0,0.00013861,2]
[353569436,1739920239685,-500.0,0.00013861,2]
[353569437,1739920239695,-500.0,0.00013861,2]
[353569438,1739920239705,-500.0,0.00013861,2]
[353569439,1739920239716,-460.04969692,0.00013861,2]